bitfinex-derivatives/quotes_ETHF0:USTF0_20250507
["timestamp","ask_amount","ask_price","bid_price","bid_amount"]
[1746598519373,3.14099491,1833.6,1833.5,6.37727]
[1746598522373,3.14099491,1833.6,1833.5,7.19197]
[1746598527086,3.14099491,1833.6,1833.5,3.59197]
[1746598528089,3.14099491,1833.6,1833.5,7.19197]
[1746598534189,6.34879491,1833.6,1833.5,3.6]
[1746598534586,3.14099491,1833.6,1833.5,4.69097]
[1746598541000,3.14099491,1833.6,1833.5,3.6]
[1746598541293,1.09103,1833.4,1833.3,1.09102]
[1746598541490,1.43941491,1833.4,1833.3,1.09102]
[1746598541692,1.09109,1833.3,1833.2,2.80381]
[1746598541892,4.83837491,1833.3,1833.2,2.80385]
[1746598542093,4.76570728,1833.3,1833.2,2.80385]
[1746598542294,4.83837491,1833.3,1833.2,2.80385]
[1746598542496,4.83837491,1833.3,1833.2,1.09115]
[1746598543097,1.09115,1833.2,1833.1,1.98535]
[1746598543298,3.11683491,1833.2,1833.1,1.98535]
[1746598543704,2.02568491,1833.2,1833.1,1.98535]
[1746598543901,0.8502,1833.3,1833.1,0.8942]
[1746598544097,6.8065,1833.5,1833.4,1.09103]
[1746598544499,7.15488491,1833.5,1833.4,1.09103]
[1746598545000,4.192,1833.5,1833.4,1.09103]
[1746598545202,0.8218,1833.6,1833.5,1.09097]
[1746598545402,0.8218,1833.6,1833.5,3.63347]
[1746598545703,1.17018491,1833.6,1833.5,3.63347]
[1746598545896,1.17018491,1833.6,1833.5,6.84127]
[1746598546202,1.17018491,1833.6,1833.5,10.44127]
[1746598547909,2.26109491,1833.6,1833.5,10.44127]
[1746598548097,3.87949491,1833.6,1833.5,7.23347]
[1746598548404,2.78858491,1833.6,1833.5,7.23347]
[1746598548905,3.87949491,1833.6,1833.5,4.69097]
[1746598549298,3.87949491,1833.6,1833.5,1.09097]
[1746598551208,3.87949491,1833.6,1833.5,4.69097]
[1746598552604,2.78858491,1833.6,1833.5,7.89877]
[1746598552811,5.2828,1833.8,1833.7,1.09085]
[1746598553208,5.63118491,1833.8,1833.7,4.69085]
[1746598553508,7.32768491,1833.8,1833.7,3.6]
[1746598554103,1.09091,1833.7,1833.5,3.2078]
[1746598554303,2.01908491,1833.6,1833.5,4.29877]
[1746598554809,2.01908491,1833.6,1833.5,1.09097]
[1746598555212,2.01908491,1833.6,1833.5,4.69097]
[1746598555810,3.10999491,1833.6,1833.5,4.69097]
[1746598556008,3.10999491,1833.6,1833.5,3.6]
[1746598556215,1.09097,1833.5,1833.4,1.09098]
[1746598556509,3.07765491,1833.5,1833.4,1.09098]
[1746598557314,3.07765491,1833.5,1833.4,4.69098]
[1746598558101,3.07765491,1833.5,1833.4,1.09098]
[1746598560515,1.09103,1833.4,1833.3,1.09104]
[1746598560815,3.07661491,1833.4,1833.3,1.09104]
[1746598561114,3.07661491,1833.4,1833.3,4.69104]
[1746598561704,3.07661491,1833.4,1833.3,4.69109]
[1746598562110,3.07661491,1833.4,1833.3,1.09109]
[1746598568022,3.07661491,1833.4,1833.3,2.78829]
[1746598572321,1.09109,1833.3,1833.2,1.09112]
[1746598572522,4.69537491,1833.3,1833.2,1.09112]
[1746598573125,4.69537491,1833.3,1833.2,4.69112]
[1746598575628,4.69537491,1833.3,1833.2,4.69115]
[1746598576326,4.69537491,1833.3,1833.1,1.7221]
[1746598576631,3.03563491,1833.2,1833.1,2.81328]
[1746598578436,1.09127,1833.0,1832.9,8.36506074]
[1746598578636,1.09127,1833.0,1832.9,10.01656074]
[1746598579935,2.75967,1833.0,1832.9,10.01656074]
[1746598582439,2.75967,1833.0,1832.9,2.7428]
[1746598584444,1.90477,1833.0,1832.9,2.7428]
[1746598584737,5.28218,1833.2,1833.1,1.09121]
[1746598584938,4.191,1833.2,1833.1,1.09121]
[1746598585334,4.191,1833.2,1833.1,3.51431]
[1746598585842,0.8618,1833.4,1833.1,5.6309]
[1746598586037,10.73550641,1833.5,1833.4,1.09103]
[1746598586236,11.08389132,1833.5,1833.4,1.09103]
[1746598586637,11.08389132,1833.5,1833.4,3.63233]
[1746598587239,11.08389132,1833.5,1833.4,7.23233]
[1746598587436,5.45350641,1833.5,1833.4,8.11483]
[1746598588734,4.2987,1833.7,1833.4,8.11483]
[1746598588942,4.2987,1833.7,1833.6,1.09091]
[1746598589438,3.2078,1833.7,1833.6,1.09091]
[1746598589640,3.55618491,1833.7,1833.6,1.09091]
[1746598590340,3.55618491,1833.7,1833.6,2.69671]
[1746598590940,4.64703491,1833.7,1833.6,2.69671]
[1746598592442,3.55618491,1833.7,1833.6,2.69671]
[1746598593439,4.64703491,1833.7,1833.6,2.69671]
[1746598593638,6.28473491,1833.7,1833.6,2.69671]
[1746598595145,3.07693491,1833.7,1833.6,2.69671]
[1746598597451,3.07693491,1833.7,1833.6,1.6058]
[1746598597749,3.07693491,1833.7,1833.6,1.09091]
[1746598597950,4.71325491,1833.7,1833.4,3.4343]
[1746598598152,1.43935491,1833.5,1833.4,1.9735]
[1746598598553,3.17945491,1833.5,1833.4,1.9735]
[1746598599845,3.17945491,1833.5,1833.4,3.649]
[1746598600151,3.17945491,1833.5,1833.4,7.249]
[1746598600347,1.09088,1833.7,1833.6,1.09091]
[1746598600753,1.43926491,1833.7,1833.6,1.09091]
[1746598601050,1.43926491,1833.7,1833.6,2.76641]
[1746598601252,0.34838491,1833.7,1833.6,2.76641]
[1746598602739,0.07266763,1833.7,1833.6,2.76641]
[1746598602946,4.19,1833.8,1833.7,1.09085]
[1746598603152,4.19,1833.8,1833.7,2.84335]
[1746598603448,11.03179,1834.0,1833.9,1.09073]
[1746598603848,11.38017491,1834.0,1833.9,1.09073]
[1746598604048,11.38017491,1834.0,1833.9,2.84323]
[1746598604652,11.38017491,1834.0,1833.9,1.7525]
[1746598605355,3.98337491,1834.0,1833.9,2.84323]
[1746598605760,3.98337491,1834.0,1833.9,1.7525]
[1746598608358,3.98337491,1834.0,1833.9,2.84323]
[1746598609152,1.09057,1834.2,1834.1,1.09061]
[1746598609854,1.09057,1834.2,1834.1,3.53851]
[1746598613654,2.83517,1834.2,1834.1,3.53851]
[1746598613955,1.09067,1834.0,1833.9,3.2078]
[1746598614156,1.43905491,1834.0,1833.9,5.90413]
[1746598614455,1.09067,1834.0,1833.9,5.90413]
[1746598615961,1.96267,1834.0,1833.9,5.90413]
[1746598616860,0.872,1834.0,1833.9,5.90413]
[1746598617163,1.96267,1834.0,1833.9,5.90413]
[1746598618165,1.96267,1834.0,1833.9,2.69633]
[1746598618762,0.872,1834.0,1833.9,2.69633]
[1746598620859,0.27571728,1834.0,1833.9,2.69633]
[1746598621257,0.27571728,1834.0,1833.9,6.29633]
[1746598621866,0.27571728,1834.0,1833.9,9.50413]
[1746598622265,0.27571728,1834.0,1833.9,5.90413]
[1746598622863,1.36638728,1834.0,1833.9,5.90413]
[1746598623263,0.27571728,1834.0,1833.9,9.50413]
[1746598623464,0.34838491,1834.0,1833.9,9.50413]
[1746598624167,1.43905491,1834.0,1833.9,9.50413]
[1746598624368,3.07865491,1834.0,1833.9,9.50413]
[1746598624964,3.07865491,1834.0,1833.9,10.37473]
[1746598625167,1.98798491,1834.0,1833.9,6.77473]
[1746598626064,1.98798491,1834.0,1833.9,10.37473]
[1746598626462,0.34838491,1834.0,1833.9,10.37473]
[1746598627071,0.34838491,1834.0,1833.9,6.77473]
[1746598629255,1.43905491,1834.0,1833.9,6.77473]
[1746598629456,0.34838491,1834.0,1833.9,6.77473]
[1746598629667,1.93148491,1834.0,1833.9,6.77473]
[1746598629863,0.34838491,1834.0,1833.9,6.77473]
[1746598630068,3.2508,1834.7,1834.6,1.09031]
[1746598631167,5.45350641,1834.8,1834.7,1.09026]
[1746598631365,5.45350641,1834.8,1834.7,4.29806]
[1746598631870,7.25811141,1834.9,1834.7,4.29806]
[1746598631871,7.25811141,1834.9,1834.8,1.0902]
[1746598632168,7.25811141,1834.9,1834.8,7.2405]
[1746598632773,4.0209,1835.0,1834.8,5.3073]
[1746598632969,3.62844,1834.9,1834.8,3.6]
[1746598633170,3.62844,1834.9,1834.8,1.0902]
[1746598634177,3.62844,1834.9,1834.8,4.6902]
[1746598634472,3.62844,1834.9,1834.8,3.6]
[1746598635474,3.62844,1834.9,1834.8,4.6902]
[1746598636172,3.62844,1834.9,1834.8,3.6]
[1746598636375,3.62844,1834.9,1834.8,4.6902]
[1746598637174,3.62844,1834.9,1834.8,3.6]
[1746598638080,1.09026,1834.7,1834.6,3.61817]
[1746598638278,2.68634,1834.8,1834.7,1.09026]
[1746598638671,1.09026,1834.7,1834.6,3.61817]
[1746598643080,1.09026,1834.7,1834.6,2.5279]
[1746598643286,1.09031,1834.6,1834.5,3.6]
[1746598643483,1.09029,1834.7,1834.5,3.6]
[1746598643684,3.61039,1834.7,1834.6,2.76238]
[1746598644590,1.09031,1834.6,1834.5,4.69033]
[1746598644885,3.58171,1834.6,1834.5,4.69033]
[1746598645187,3.58171,1834.6,1834.5,6.34423]
[1746598646178,3.58171,1834.6,1834.5,4.69033]
[1746598648383,3.58171,1834.6,1834.5,6.40043]
[1746598650294,2.4914,1834.6,1834.5,6.40043]
[1746598650589,3.58171,1834.6,1834.5,6.40043]
[1746598653491,2.4914,1834.6,1834.5,6.40043]
[1746598653996,3.58171,1834.6,1834.5,6.40043]
[1746598655897,2.4914,1834.6,1834.5,6.40043]
[1746598657591,3.58171,1834.6,1834.5,6.40043]
[1746598658802,2.4914,1834.6,1834.5,6.40043]
[1746598658997,3.58171,1834.6,1834.5,6.40043]
[1746598663796,3.58171,1834.6,1834.5,3.6]
[1746598666094,3.58171,1834.6,1834.5,4.69037]
[1746598668401,3.58171,1834.6,1834.5,5.53687]
[1746598674906,3.58171,1834.6,1834.5,6.39017]
[1746598676608,1.09031,1834.6,1834.5,6.39017]
[1746598676907,11.76443,1835.0,1834.9,1.09014]
[1746598677302,11.76443,1835.0,1834.9,4.69014]
[1746598677808,11.76443,1835.0,1834.9,6.32964]
[1746598678006,6.14053,1835.0,1834.9,6.32964]
[1746598678908,6.14053,1835.0,1834.9,3.6]
[1746598679207,1.09014,1834.9,1834.8,1.91617]
[1746598679407,2.71994,1834.9,1834.8,3.57107]
[1746598679610,3.59344,1834.9,1834.8,3.57107]
[1746598680109,2.71994,1834.9,1834.8,7.17107]
[1746598680408,1.09014,1834.9,1834.8,7.17107]
[1746598680609,1.09014,1834.9,1834.8,6.0809]
[1746598680809,2.71994,1834.9,1834.8,6.0809]
[1746598681709,2.71994,1834.9,1834.8,7.1711]
[1746598683108,2.71994,1834.9,1834.8,3.6]
[1746598684811,5.92774,1834.9,1834.8,3.6]
[1746598686209,1.09031,1834.6,1834.5,2.5663]
[1746598686605,1.09031,1834.6,1834.5,0.8533]
[1746598686907,2.72131,1834.6,1834.5,0.8533]
[1746598687310,2.72131,1834.6,1834.5,4.4533]
[1746598691411,1.09031,1834.6,1834.5,5.54367]
[1746598691607,1.09031,1834.6,1834.5,7.25897]
[1746598697315,1.09031,1834.6,1834.5,6.1686]
[1746598697503,2.67891,1834.6,1834.5,6.1686]
[1746598698815,2.67891,1834.6,1834.5,7.25897]
[1746598699115,2.67891,1834.6,1834.5,6.1686]
[1746598699509,2.67891,1834.6,1834.5,7.25897]
[1746598700915,5.46483487,1834.9,1834.6,1.09031]
[1746598701208,5.46483487,1834.9,1834.8,1.0902]
[1746598701719,5.46483487,1834.9,1834.8,2.6728]
[1746598702013,6.55497487,1834.9,1834.8,1.5826]
[1746598702212,8.23627487,1834.9,1834.8,5.1826]
[1746598702513,9.89807487,1834.9,1834.8,5.1826]
[1746598702716,9.03887487,1834.9,1834.8,5.1826]
[1746598703013,9.03887487,1834.9,1834.8,3.6]
[1746598703217,9.03887487,1834.9,1834.8,4.6902]
[1746598703515,9.03887487,1834.9,1834.8,6.2698]
[1746598703816,1.09014,1834.9,1834.8,6.2698]
[1746598704817,1.09012,1835.0,1834.9,1.09011]
[1746598705115,1.09014,1834.9,1834.8,4.69015]
[1746598706116,1.09014,1834.9,1834.8,1.09015]
[1746598706618,1.0902,1834.8,1834.7,9.20648074]
[1746598706816,1.0902,1834.8,1834.7,1.93272]
[1746598707310,1.0902,1834.8,1834.7,5.53272]
[1746598707717,1.09018,1834.9,1834.8,1.09016]
[1746598708216,1.09018,1834.9,1834.8,4.69016]
[1746598714125,1.09018,1834.9,1834.8,5.53486]
[1746598718133,1.09018,1834.9,1834.8,7.21716]
[1746598721726,1.09018,1834.9,1834.8,5.53486]
[1746598722521,1.09018,1834.9,1834.8,7.13916]
[1746598722929,1.09018,1834.9,1834.8,4.4447]
[1746598723125,4.29798,1834.9,1834.8,4.4447]
[1746598723331,5.32418,1834.9,1834.8,4.4447]
[1746598723526,10.18218,1834.9,1834.8,4.4447]
[1746598724925,6.97438,1834.9,1834.8,4.4447]
[1746598725124,6.97438,1834.9,1834.8,5.5349]
[1746598725925,6.97438,1834.9,1834.8,7.2144]
[1746598726531,6.97438,1834.9,1834.8,6.1242]
[1746598726829,6.97438,1834.9,1834.8,7.2144]
[1746598728435,2.74038,1834.9,1834.8,6.1242]
[1746598729038,2.74038,1834.9,1834.8,7.2144]
[1746598729627,2.74038,1834.9,1834.8,5.5349]
[1746598730137,2.74038,1834.9,1834.8,7.2732]
[1746598732939,2.74038,1834.9,1834.8,6.183]
[1746598733729,2.74038,1834.9,1834.8,7.2732]
[1746598739150,2.74038,1834.9,1834.8,5.5349]
[1746598739342,2.74038,1834.9,1834.8,4.4447]
[1746598739949,2.74038,1834.9,1834.8,5.5349]
[1746598742742,2.74038,1834.9,1834.8,4.4447]
[1746598742743,5.94818,1834.9,1834.8,4.4447]
[1746598746647,10.16518,1834.9,1834.8,4.4447]
[1746598748551,14.37318,1834.9,1834.8,4.4447]
[1746598749853,15.22788,1834.9,1834.8,4.4447]
[1746598756950,1.09043,1834.4,1834.3,7.27376074]
[1746598757155,1.09043,1834.4,1834.3,12.54836074]
[1746598757557,4.48763,1834.4,1834.3,12.54836074]
[1746598759160,4.48763,1834.4,1834.3,13.63885074]
[1746598759352,1.89803,1834.4,1834.3,13.63885074]
[1746598759551,1.89803,1834.4,1834.3,12.54836074]
[1746598759858,4.29821,1834.5,1834.3,12.54836074]
[1746598760056,4.29821,1834.5,1834.4,2.5419]
[1746598760257,4.29821,1834.5,1834.4,3.3325]
[1746598760658,4.29821,1834.5,1834.4,4.42293]
[1746598761060,4.29821,1834.5,1834.4,1.6746]
[1746598761259,7.63441,1834.5,1834.4,5.2746]
[1746598762462,7.63441,1834.5,1834.4,3.6]
[1746598763752,7.63441,1834.5,1834.4,5.2514]
[1746598765262,4.42661,1834.5,1834.4,5.2514]
[1746598765462,1.09041,1834.5,1834.4,5.2514]
[1746598765664,1.09041,1834.5,1834.4,6.1102]
[1746598766764,1.09041,1834.5,1834.4,7.20063]
[1746598769066,1.09041,1834.5,1834.4,6.1102]
[1746598769772,1.09041,1834.5,1834.4,7.20063]
[1746598770259,1.09041,1834.5,1834.4,5.2514]
[1746598770967,1.09041,1834.5,1834.4,4.7514]
[1746598772460,1.09041,1834.5,1834.4,5.84183]
[1746598774359,1.09041,1834.5,1834.4,4.7514]
[1746598774873,4.29821,1834.5,1834.4,4.7514]
[1746598775365,6.83271,1834.5,1834.4,4.7514]
[1746598777669,3.62491,1834.5,1834.4,4.7514]
[1746598778069,6.83271,1834.5,1834.4,4.7514]
[1746598778270,6.83271,1834.5,1834.4,3.1]
[1746598780672,3.62491,1834.5,1834.4,3.1]
[1746598780876,6.83271,1834.5,1834.4,3.1]
[1746598782273,3.62491,1834.5,1834.4,3.1]
[1746598782475,6.83271,1834.5,1834.4,3.1]
[1746598782675,6.83271,1834.5,1834.4,4.7703]
[1746598783173,5.12641,1834.5,1834.4,4.7703]
[1746598783376,13.87483487,1834.8,1834.5,1.09032]
[1746598783573,1.09026,1834.7,1834.6,0.831]
[1746598783872,1.09026,1834.7,1834.6,2.5013]
[1746598784777,4.29806,1834.7,1834.6,2.5013]
[1746598784976,6.83726,1834.7,1834.6,2.5013]
[1746598787277,3.62946,1834.7,1834.6,2.5013]
[1746598789779,1.09031,1834.6,1834.5,3.6]
[1746598790078,3.51961,1834.6,1834.5,3.6]
[1746598790781,6.72741,1834.6,1834.5,3.6]
[1746598796080,6.72741,1834.6,1834.5,4.69037]
[1746598796283,3.51961,1834.6,1834.5,4.69037]
[1746598796581,3.51961,1834.6,1834.5,5.52117]
[1746598796775,3.51961,1834.6,1834.5,4.4308]
[1746598797179,1.93951,1834.6,1834.5,6.1353]
[1746598797377,5.14731,1834.6,1834.5,6.1353]
[1746598797878,6.79331,1834.6,1834.5,3.6]
[1746598804087,3.58551,1834.6,1834.5,3.6]
[1746598804288,6.79331,1834.6,1834.5,3.6]
[1746598804688,3.58551,1834.6,1834.5,3.6]
[1746598804890,6.79331,1834.6,1834.5,3.6]
[1746598808701,3.58551,1834.6,1834.5,3.6]
[1746598808905,6.79331,1834.6,1834.5,3.6]
[1746598810103,1.09061,1834.1,1834.0,7.27376074]
[1746598810401,1.09061,1834.1,1834.0,8.14986074]
[1746598810998,3.2078,1834.2,1834.0,8.14986074]
[1746598811302,4.29839,1834.2,1834.1,1.09061]
[1746598811608,1.09059,1834.2,1834.1,3.52241]
[1746598819803,1.09059,1834.2,1834.1,2.4318]
[1746598820107,1.09059,1834.2,1834.1,3.52241]
[1746598820608,1.09059,1834.2,1834.1,2.4318]
[1746598821807,3.65669,1834.2,1834.1,2.4318]
[1746598822008,3.65669,1834.2,1834.1,1.5954]
[1746598824614,6.86449,1834.2,1834.1,1.5954]
[1746598826011,6.86449,1834.2,1834.0,4.4195]
[1746598826012,1.09061,1834.1,1834.0,4.4195]
[1746598826203,2.75721,1834.1,1834.0,6.0359]
[1746598826398,2.75721,1834.1,1834.0,3.6]
[1746598826598,11.15021,1834.1,1834.0,3.6]
[1746598828098,10.0596,1834.1,1833.6,8.36467074]
[1746598828297,10.0596,1834.1,1833.7,1.6492]
[1746598828298,2.72683,1833.9,1833.7,1.6492]
[1746598828508,1.6621,1833.8,1833.7,1.6492]
[1746598828707,2.75289,1833.8,1833.7,1.6492]
[1746598829311,2.75289,1833.8,1833.7,5.2492]
[1746598830313,5.96069,1833.8,1833.7,5.2492]
[1746598831508,2.75289,1833.8,1833.7,5.2492]
[1746598831907,14.34469,1833.8,1833.7,3.6]
[1746598832109,1.09091,1833.6,1833.5,8.86246074]
[1746598832313,1.09091,1833.6,1833.5,9.67646074]
[1746598832915,1.09091,1833.6,1833.5,2.4027]
[1746598833218,1.09091,1833.6,1833.5,6.0027]
[1746598833718,1.09091,1833.6,1833.5,7.09365]
[1746598834520,6.72649,1833.7,1833.5,7.09365]
[1746598834713,6.72649,1833.7,1833.6,1.6648]
[1746598835215,3.51869,1833.7,1833.6,1.6648]
[1746598835418,3.51869,1833.7,1833.6,2.75571]
[1746598836015,5.28282,1833.8,1833.7,1.09085]
[1746598836217,5.28374,1833.9,1833.8,1.09079]
[1746598836406,4.193,1833.9,1833.8,1.09079]
[1746598836611,4.193,1833.9,1833.8,2.68049]
[1746598837118,4.193,1833.9,1833.8,6.28049]
[1746598837716,5.28373,1833.9,1833.8,6.28049]
[1746598838019,1.09073,1833.9,1833.8,6.28049]
[1746598838819,5.28372,1834.0,1833.9,1.09073]
[1746598839021,6.87972,1834.0,1833.9,2.68043]
[1746598839318,6.87972,1834.0,1833.9,7.07213]
[1746598842020,6.87972,1834.0,1833.9,3.6]
[1746598845621,6.87972,1834.0,1833.9,2.69915269]
[1746598846121,1.09085,1833.7,1833.6,1.6496]
[1746598847020,2.77545,1833.7,1833.6,1.6496]
[1746598847418,1.09091,1833.6,1833.5,1.93494]
[1746598847611,1.09091,1833.6,1833.5,0.844]
[1746598847816,1.96191,1833.6,1833.5,0.844]
[1746598848027,3.64651,1833.6,1833.5,3.58457]
[1746598849322,2.5556,1833.6,1833.5,3.58457]
[1746598849522,5.2839,1833.7,1833.6,1.09091]
[1746598849816,5.2839,1833.7,1833.6,2.80771]
[1746598850022,5.2839,1833.7,1833.6,1.7168]
[1746598850929,5.2839,1833.7,1833.6,2.80771]
[1746598851425,5.2839,1833.7,1833.6,1.7168]
[1746598852320,5.2839,1833.7,1833.6,2.80771]
[1746598854130,5.2839,1833.7,1833.6,1.7168]
[1746598855031,5.2839,1833.7,1833.6,2.80771]
[1746598855432,1.09095,1833.6,1833.5,1.09096]
[1746598855731,5.2839,1833.7,1833.6,1.09091]
[1746598855934,1.09091,1833.6,1833.5,1.96392]
[1746598856724,1.09091,1833.6,1833.5,3.64962]
[1746598858032,1.09091,1833.6,1833.5,2.5587]
[1746598858233,3.54831,1833.6,1833.5,2.5587]
[1746598858431,4.38481,1833.6,1833.5,3.64967]
[1746598860330,1.93871,1833.6,1833.5,3.64967]
[1746598860534,5.2839,1833.7,1833.6,1.09091]
[1746598860726,5.2839,1833.7,1833.6,2.67801]
[1746598872340,5.2839,1833.7,1833.6,1.5871]
[1746598872640,6.983,1833.7,1833.6,1.5871]
[1746598873141,5.8921,1833.7,1833.6,2.67801]
[1746598873736,6.98295,1833.7,1833.6,2.67801]
[1746598875640,6.98295,1833.7,1833.6,1.5871]
[1746598875845,1.09091,1833.6,1833.5,1.96392]
[1746598876041,4.33601,1833.6,1833.5,3.71832]
[1746598876244,4.33601,1833.6,1833.5,1.09092]
[1746598877245,1.09097,1833.5,1833.4,2.84541]
[1746598877445,2.68467,1833.5,1833.4,2.84541]
[1746598877647,1.5937,1833.5,1833.4,2.84541]
[1746598879857,1.6514,1833.6,1833.5,1.09097]
[1746598880059,3.2533,1833.6,1833.5,3.53987]
[1746598880352,4.34421,1833.6,1833.5,3.53987]
[1746598880543,3.2533,1833.6,1833.5,3.53987]
[1746598881454,4.34421,1833.6,1833.5,3.53987]
[1746598881960,3.2533,1833.6,1833.5,3.53987]
[1746598883255,2.4007,1833.6,1833.5,3.53987]
[1746598883451,0.7988,1833.6,1833.5,6.74767]
[1746598892667,0.7988,1833.6,1833.5,3.53987]
[1746598893964,2.5252,1833.6,1833.5,3.53987]
[1746598894465,3.61611,1833.6,1833.5,3.53987]
[1746598894764,2.5252,1833.6,1833.5,3.53987]
[1746598894966,3.61611,1833.6,1833.5,3.53987]
[1746598895164,3.61611,1833.6,1833.5,1.09097]
[1746598895760,1.09097,1833.5,1833.4,7.27376074]
[1746598895962,2.80307,1833.5,1833.4,7.27376074]
[1746598898974,1.09115,1833.2,1833.1,1.09117]
[1746598899971,3.67725,1833.2,1833.1,1.09117]
[1746598900774,3.67725,1833.2,1833.0,3.57192]
[1746598901174,3.67725,1833.2,1833.1,1.09121]
[1746598901374,4.51555,1833.2,1833.1,1.09121]
[1746598901869,4.51555,1833.2,1833.1,2.80151]
[1746598907478,3.4244,1833.2,1833.1,2.80151]
[1746598908076,4.51555,1833.2,1833.1,2.80151]
[1746598912378,8.67263487,1833.7,1833.1,9.9181]
[1746598912581,5.28397,1833.6,1833.5,1.09094]
[1746598912777,6.86807,1833.6,1833.5,1.09094]
[1746598912977,1.09101,1833.5,1833.4,1.09099]
[1746598913176,1.09101,1833.5,1833.4,2.75929]
[1746598913778,1.09101,1833.5,1833.4,1.6683]
[1746598913977,2.67511,1833.5,1833.4,2.75933]
[1746598914583,2.67511,1833.5,1833.4,1.6683]
[1746598915280,1.09103,1833.4,1833.3,0.8185]
[1746598915481,4.41943,1833.4,1833.3,0.8185]
[1746598916582,4.41943,1833.4,1833.3,2.4788]
[1746598917483,1.09115,1833.2,1833.1,1.09116]
[1746598918384,2.74024,1833.3,1833.2,1.09115]
[1746598918776,15.96966,1833.3,1832.9,8.11486074]
[1746598918975,1.09127,1833.0,1832.9,8.97676074]
[1746598919476,4.44387,1833.0,1832.9,8.97676074]
[1746598919685,1.09133,1832.9,1832.8,1.91185]
[1746598919879,2.71593,1832.9,1832.8,1.91185]
[1746598920080,2.71593,1832.9,1832.8,3.61485]
[1746598920478,5.92373,1832.9,1832.8,2.5235]
[1746598921478,5.92373,1832.9,1832.7,8.36516074]
[1746598921684,2.72109,1832.8,1832.7,9.02076074]
[1746598922280,2.72109,1832.8,1832.7,7.27376074]
[1746598923389,2.72109,1832.8,1832.7,8.36520074]
[1746598923986,2.72109,1832.8,1832.7,10.11220074]
[1746598924588,2.72109,1832.8,1832.7,9.02076074]
[1746598924792,2.72109,1832.8,1832.7,1.747]
[1746598925287,2.72109,1832.8,1832.7,2.83844]
[1746598925487,2.72109,1832.8,1832.7,1.747]
[1746598926187,2.72109,1832.8,1832.7,2.83844]
[1746598929292,2.72109,1832.8,1832.7,1.747]
[1746598929793,1.09144,1832.7,1832.6,1.93946]
[1746598929993,4.45004,1832.7,1832.6,1.93946]
[1746598930984,4.45004,1832.7,1832.6,3.64286]
[1746598933792,1.09144,1832.8,1832.7,1.09144]
[1746598933990,1.09144,1832.8,1832.7,2.80834]
[1746598934393,3.63664,1832.8,1832.7,2.80834]
[1746598941200,2.5452,1832.8,1832.7,2.80834]
[1746598941402,9.30288,1832.9,1832.8,1.09139]
[1746598941693,5.11088,1832.9,1832.8,3.47649]
[1746598942197,5.11088,1832.9,1832.8,2.3851]
[1746598942389,6.71478,1832.9,1832.8,2.3851]
[1746598942791,5.6234,1832.9,1832.5,0.8764]
[1746598942992,1.09146,1832.7,1832.6,3.61015]
[1746598944499,2.75456,1832.7,1832.6,3.61015]
[1746598944801,2.75456,1832.7,1832.6,3.6102]
[1746598948210,2.75456,1832.7,1832.6,2.5187]
[1746598948397,1.09156,1832.5,1832.4,1.09159]
[1746598948597,1.09161,1832.5,1832.4,1.09159]
[1746598949005,1.09161,1832.5,1832.4,2.76349]
[1746598951005,2.83111,1832.5,1832.4,2.76349]
[1746598957209,1.09162,1832.4,1832.3,1.90024]
[1746598957411,3.53132,1832.4,1832.3,3.52414]
[1746598958008,2.4397,1832.4,1832.3,3.52414]
[1746598958401,1.09161,1832.5,1832.4,1.09162]
[1746598958601,1.09161,1832.5,1832.4,2.72832]
[1746598960011,2.75751,1832.5,1832.4,2.72832]
[1746598965313,2.75746,1832.5,1832.4,2.72832]
[1746598967613,1.6659,1832.5,1832.4,2.72832]
[1746598967819,1.96115,1832.6,1832.5,1.09156]
[1746598968014,6.15315,1832.6,1832.5,4.52486]
[1746598969614,6.15315,1832.6,1832.5,2.5675]
[1746598969816,7.86425,1832.6,1832.5,2.5675]
[1746598970017,8.72965,1832.6,1832.5,2.5675]
[1746598970713,8.72965,1832.6,1832.5,3.65906]
[1746598972717,8.72965,1832.6,1832.5,2.83276]
[1746598973917,7.6381,1832.6,1832.3,4.0131]
[1746598974223,2.73652,1832.5,1832.4,1.09162]
[1746598974416,2.73652,1832.5,1832.4,2.72532]
[1746598975620,2.73652,1832.5,1832.4,1.09162]
[1746598980223,2.72907,1832.4,1832.1,2.27498]
[1746598980525,1.09174,1832.2,1832.1,3.36678]
[1746598980725,1.09174,1832.2,1832.1,5.80728]
[1746598981227,6.7444,1832.3,1832.1,4.71548]
[1746598981527,0.7991,1832.4,1832.3,1.09168]
[1746598981720,1.09161,1832.5,1832.4,1.09162]
[1746598982121,1.09161,1832.5,1832.4,2.67522]
[1746598985326,5.28353,1832.6,1832.5,1.09156]
[1746598985625,5.28353,1832.6,1832.5,1.7123]
[1746598985825,6.91543,1832.6,1832.5,2.80386]
[1746598989141,6.91543,1832.6,1832.5,1.7123]
[1746598993842,6.91543,1832.6,1832.5,2.80386]
[1746598994546,6.91543,1832.6,1832.5,1.7123]
[1746598998449,1.09162,1832.4,1832.3,0.8569]
[1746598998651,1.09162,1832.4,1832.3,3.68088]
[1746598999250,3.53832,1832.4,1832.3,2.82398]
[1746599009458,1.92532,1832.4,1832.3,2.82398]
[1746599010852,1.92532,1832.4,1832.3,1.7323]
[1746599011157,3.63482,1832.4,1832.3,2.82398]
[1746599011459,1.09168,1832.3,1832.2,1.959]
[1746599011755,3.59438,1832.3,1832.2,1.0917]
[1746599016762,1.09174,1832.2,1832.1,4.96735]
[1746599016959,2.77414,1832.2,1832.1,4.96735]